fUSD/lending_fUSD_20250124
["ID","MTS","AMOUNT","RATE_DAILY","PERIOD"]
[350231818,1737720649747,-500.0,0.00018474,2]
[350231819,1737720649756,-500.0,0.00018474,2]
[350231820,1737720649766,-4240.53,0.00018474,2]
[350231821,1737720649776,-500.0,0.00018474,2]
[350231822,1737720649785,-500.0,0.00018474,2]
[350231823,1737720649795,-500.0,0.00018474,2]
[350231824,1737720649805,-1380.73,0.00018474,2]
[350231825,1737720649815,-500.0,0.00018474,2]
[350231826,1737720649824,-151.0,0.00018474,2]
[350231827,1737720649834,-500.0,0.00018474,2]
[350231828,1737720649843,-500.0,0.00018474,2]
[350231829,1737720649852,-500.0,0.00018474,2]
[350231830,1737720649862,-2010.84,0.00018474,2]
[350231831,1737720649872,-1000.0,0.00018474,2]
[350231832,1737720649881,-597.84,0.00018474,2]
[350231833,1737720649891,-588.27,0.00018474,2]
[350231834,1737720649900,-617.06,0.00018474,2]
[350231835,1737720649909,-500.0,0.00018474,2]
[350231836,1737720649919,-500.0,0.00018474,2]
[350231837,1737720649928,-830.77,0.00018474,2]
[350231838,1737720649938,-500.0,0.00018474,2]
[350231839,1737720649947,-500.0,0.00018474,2]
[350231840,1737720649957,-500.0,0.00018474,2]
[350231841,1737720649966,-3129.97,0.00018474,2]
[350231842,1737720649976,-2350.53,0.00018474,2]
[350231843,1737720649985,-500.0,0.00018474,2]
[350231844,1737720649994,-151.0,0.00018474,2]
[350231845,1737720650004,-866.48,0.00018474,2]
[350231846,1737720650013,-14848.32,0.00018474,2]
[350231847,1737720650023,-500.0,0.00018474,2]
[350231848,1737720650032,-500.0,0.00018474,2]
[350231849,1737720650042,-500.0,0.00018474,2]
[350231850,1737720650051,-500.0,0.00018474,2]
[350231851,1737720650061,-2094.85,0.00018474,2]
[350231852,1737720650071,-1143.55,0.00018474,2]
[350231853,1737720650080,-386.14541892,0.00018474,2]
[350231854,1737720650090,-530.76,0.00018474,2]
[350231855,1737720650099,-500.0,0.00018474,2]
[350231856,1737720650109,-522.22,0.00018474,2]
[350231857,1737720650119,-539.47,0.00018474,2]
[350231858,1737720650128,-500.0,0.00018474,2]
[350231859,1737720650138,-671.33,0.00018474,2]
[350231860,1737720650147,-2732.3,0.00018474,2]
[350231861,1737720650157,-857.08,0.00018474,2]
[350231862,1737720650166,-500.0,0.00018474,2]
[350231863,1737720650176,-500.0,0.00018474,2]
[350231864,1737720650186,-500.0,0.00018474,2]
[350231865,1737720650196,-500.0,0.00018474,2]
[350231866,1737720650206,-500.0,0.00018474,2]
[350231867,1737720650215,-151.0,0.00018474,2]
[350231868,1737720650225,-500.0,0.00018474,2]
[350231869,1737720650234,-500.0,0.00018474,2]
[350231870,1737720650243,-500.0,0.00018474,2]
[350231871,1737720650253,-500.0,0.00018474,2]
[350231872,1737720650263,-500.0,0.00018474,2]
[350231873,1737720650272,-500.0,0.00018474,2]
[350231874,1737720650281,-500.0,0.00018474,2]
[350231875,1737720650290,-500.0,0.00018474,2]
[350231876,1737720650300,-890.72,0.00018474,2]
[350231877,1737720650310,-555.02,0.00018474,2]
[350231878,1737720650319,-513.84,0.00018474,2]
[350231879,1737720650328,-500.0,0.00018474,2]
[350231880,1737720650337,-500.0,0.00018474,2]
[350231881,1737720650346,-500.0,0.00018474,2]
[350231882,1737720650356,-577.82749207,0.00018474,2]
[350231883,1737720650365,-246.87975232,0.00018474,2]
[350231884,1737720650374,-500.0,0.00018475,2]
[350231885,1737720650383,-506.18569332,0.00018475,2]
[350231886,1737720650392,-503.04165342,0.00018475,2]
[350231887,1737720650401,-500.0,0.00018475,2]
[350231888,1737720650410,-500.0,0.00018475,2]
[350231889,1737720650419,-501.74488074,0.00018475,2]
[350231890,1737720650429,-500.58135885,0.00018475,2]
[350231891,1737720650438,-510.73365964,0.00018475,2]
[350231892,1737720650448,-502.95059892,0.00018475,2]
[350231893,1737720650459,-608.94830152,0.00018475,2]
[350231894,1737720650468,-503.48899142,0.00018475,2]
[350231895,1737720650478,-504.65391323,0.00018475,2]
[350231896,1737720650487,-501.61545125,0.00018475,2]
[350231897,1737720650498,-505.05838944,0.00018475,2]
[350231898,1737720650511,-501.51023174,0.00018475,2]
[350231899,1737720650520,-503.85741891,0.00018475,2]
[350231900,1737720650530,-502.72224881,0.00018475,2]
[350231901,1737720650541,-500.0,0.00018475,2]
[350231902,1737720650550,-502.02448123,0.00018475,2]
[350231903,1737720650559,-202.5109718,0.00018475,2]
[350231904,1737720650569,-502.82550983,0.00018475,2]
[350231905,1737720650578,-416.72478951,0.00018475,2]
[350231906,1737720650589,-255.21459262,0.00018475,2]
[350231907,1737720650599,-500.0,0.00018475,2]
[350231908,1737720650609,-502.33636744,0.00018475,2]
[350231909,1737720650618,-502.16179877,0.00018475,2]
[350231910,1737720650628,-500.0,0.00018475,2]
[350231911,1737720650638,-506.29099913,0.00018475,2]
[350231912,1737720650648,-500.0,0.00018475,2]
[350231913,1737720650657,-525.24568521,0.00018475,2]
[350231914,1737720650667,-508.05720319,0.00018475,2]
[350231915,1737720650677,-500.6186318,0.00018475,2]
[350231916,1737720650686,-501.48420779,0.00018475,2]
[350231917,1737720650695,-501.65945409,0.00018475,2]
[350231918,1737720650704,-507.69220599,0.00018475,2]
[350231919,1737720650714,-151.0,0.00018475,2]
[350231920,1737720650723,-611.82,0.00018475,2]
[350231921,1737720650733,-355.8953052,0.00018475,2]
[350231922,1737720650742,-151.0,0.00018475,2]
[350231923,1737720650752,-500.0,0.00018475,2]
[350231924,1737720650761,-500.0,0.00018475,2]
[350231925,1737720650770,-500.0,0.00018475,2]
[350231926,1737720650779,-500.0,0.00018475,2]
[350231927,1737720650788,-500.0,0.00018475,2]
[350231928,1737720650798,-500.0,0.00018475,2]
[350231929,1737720650807,-500.0,0.00018475,2]
[350231930,1737720650816,-500.0,0.00018475,2]
[350231931,1737720650826,-500.0,0.00018475,2]
[350231932,1737720650835,-500.0,0.00018475,2]
[350231933,1737720650844,-500.0,0.00018475,2]
[350231934,1737720650854,-151.0,0.00018475,2]
[350231935,1737720650863,-500.0,0.00018475,2]
[350231936,1737720650872,-500.0,0.00018475,2]
[350231937,1737720650882,-500.0,0.00018475,2]
[350231938,1737720650891,-616.82,0.00018475,2]
[350231939,1737720650900,-500.0,0.00018475,2]
[350231940,1737720650910,-482.16961586,0.00018475,2]
[350231941,1737720650919,-500.0,0.00018475,2]
[350231942,1737720650929,-500.0,0.00018475,2]
[350231943,1737720650938,-247.11957653,0.00018475,2]
[350231944,1737720650947,-500.0,0.00018475,2]
[350231945,1737720650957,-500.0,0.00018475,2]
[350231946,1737720650966,-500.0,0.00018475,2]
[350231947,1737720650975,-447.09,0.00018475,2]
[350231948,1737720650984,-500.0,0.00018475,2]
[350231949,1737720650994,-151.0,0.00018475,2]
[350231950,1737720651003,-151.0,0.00018475,2]
[350231951,1737720651012,-500.0,0.00018475,2]
[350231952,1737720651022,-500.0,0.00018475,2]
[350231953,1737720651032,-500.0,0.00018475,2]
[350231954,1737720651043,-491.27115513,0.00018475,2]
[350231955,1737720651053,-500.0,0.00018475,2]
[350231956,1737720651063,-500.0,0.00018475,2]
[350231957,1737720651073,-500.0,0.00018475,2]
[350231958,1737720651082,-195.414119,0.00018475,2]
[350231959,1737720651092,-195.414119,0.00018475,2]
[350231960,1737720651221,-195.414119,0.00018475,2]
[350231961,1737720651230,-195.414119,0.00018475,2]
[350231962,1737720651239,-500.0,0.00018475,2]
[350231963,1737720651249,-500.0,0.00018475,2]
[350231964,1737720651257,-500.0,0.00018475,2]
[350231965,1737720651267,-500.0,0.00018475,2]
[350231966,1737720651276,-222.07693973,0.00018475,2]
[350231967,1737720651285,-500.0,0.00018475,2]
[350231968,1737720651294,-500.0,0.00018475,2]
[350231969,1737720651303,-500.0,0.00018475,2]
[350231970,1737720651314,-500.0,0.00018475,2]
[350231971,1737720651323,-500.0,0.00018475,2]
[350231972,1737720651331,-500.0,0.00018475,2]
[350231973,1737720651341,-200.0,0.00018475,2]
[350231974,1737720651350,-500.0,0.00018475,2]
[350231975,1737720651359,-500.0,0.00018475,2]
[350231976,1737720651368,-500.0,0.00018475,2]
[350231977,1737720651378,-500.0,0.00018475,2]
[350231978,1737720651387,-641.35413624,0.00018475,2]
[350231979,1737720651396,-500.0,0.00018475,2]
[350231980,1737720651405,-500.0,0.00018475,2]
[350231981,1737720651415,-500.0,0.00018475,2]
[350231982,1737720651424,-500.0,0.00018475,2]
[350231983,1737720651434,-1029.82,0.00018475,2]
[350231984,1737720651444,-500.0,0.00018475,2]
[350231985,1737720651453,-500.0,0.00018475,2]
[350231986,1737720651463,-169.713504,0.00018475,2]
[350231987,1737720651472,-169.713504,0.00018475,2]
[350231988,1737720651481,-872.26,0.00018475,2]
[350231989,1737720651491,-151.0,0.00018475,2]
[350231990,1737720651504,-151.0,0.00018475,2]
[350231991,1737720651514,-618.13867049,0.00018475,2]
[350231992,1737720651523,-644.60069156,0.00018475,2]
[350231993,1737720651532,-500.0,0.00018475,2]
[350231994,1737720651542,-685.94,0.00018475,2]
[350231995,1737720651552,-500.0,0.00018475,2]
[350231996,1737720651561,-500.0,0.00018475,2]
[350231997,1737720651570,-500.0,0.00018475,2]
[350231998,1737720651580,-500.0,0.00018475,2]
[350231999,1737720651591,-500.0,0.00018475,2]
[350232000,1737720651600,-500.0,0.00018475,2]
[350232001,1737720651609,-500.0,0.00018475,2]
[350232002,1737720651618,-500.0,0.00018475,2]
[350232003,1737720651627,-500.0,0.00018475,2]
[350232004,1737720651636,-500.0,0.00018475,2]
[350232005,1737720651646,-500.0,0.00018475,2]
[350232006,1737720651655,-631.16,0.00018475,2]
[350232007,1737720651664,-500.0,0.00018475,2]
[350232008,1737720651674,-151.0,0.00018475,2]
[350232009,1737720651683,-500.0,0.00018475,2]
[350232010,1737720651692,-500.0,0.00018475,2]
[350232011,1737720651701,-152.496584,0.00018475,2]
[350232012,1737720651710,-500.0,0.00018475,2]
[350232013,1737720651719,-500.0,0.00018475,2]
[350232014,1737720651728,-500.0,0.00018475,2]
[350232015,1737720651737,-500.0,0.00018475,2]
[350232016,1737720651747,-500.0,0.00018475,2]
[350232017,1737720651757,-326.52925612,0.00018475,2]
[350232018,1737720651766,-500.0,0.00018475,2]
[350232019,1737720651775,-500.0,0.00018475,2]
[350232020,1737720651786,-500.0,0.00018475,2]
[350232021,1737720651795,-151.0,0.00018475,2]
[350232022,1737720651804,-151.0,0.00018475,2]
[350232023,1737720651813,-151.0,0.00018475,2]
[350232024,1737720651823,-151.0,0.00018475,2]
[350232025,1737720651832,-151.0,0.00018475,2]
[350232026,1737720651841,-151.0,0.00018475,2]
[350232027,1737720651851,-151.0,0.00018475,2]
[350232028,1737720651860,-151.0,0.00018475,2]
[350232029,1737720651869,-151.0,0.00018475,2]
[350232030,1737720651878,-151.0,0.00018475,2]
[350232031,1737720651888,-151.0,0.00018475,2]
[350232032,1737720651898,-392.83345,0.00018475,2]
[350232033,1737720651907,-151.0,0.00018475,2]
[350232034,1737720651916,-392.83345,0.00018475,2]
[350232035,1737720651925,-151.0,0.00018475,2]
[350232036,1737720651934,-392.83345,0.00018475,2]
[350232037,1737720651944,-151.0,0.00018475,2]
[350232038,1737720651953,-392.83345,0.00018475,2]
[350232039,1737720651963,-392.83345,0.00018475,2]
[350232040,1737720651973,-392.83345,0.00018475,2]
[350232041,1737720651983,-232.507436,0.00018475,2]
[350232042,1737720651992,-232.507436,0.00018475,2]
[350232043,1737720652001,-232.507436,0.00018475,2]
[350232044,1737720652010,-232.507436,0.00018475,2]
[350232045,1737720652020,-232.507436,0.00018475,2]
[350232046,1737720652029,-232.507436,0.00018475,2]
[350232047,1737720652039,-151.0,0.00018475,2]
[350232048,1737720652048,-151.0,0.00018475,2]
[350232049,1737720652058,-151.0,0.00018475,2]
[350232050,1737720652068,-151.0,0.00018475,2]
[350232051,1737720652077,-151.0,0.00018475,2]
[350232052,1737720652087,-151.0,0.00018475,2]
[350232053,1737720652096,-151.0,0.00018475,2]
[350232054,1737720652106,-151.0,0.00018475,2]
[350232055,1737720652115,-151.0,0.00018475,2]
[350232056,1737720652125,-151.0,0.00018475,2]
[350232057,1737720652134,-151.0,0.00018475,2]
[350232058,1737720652143,-151.0,0.00018475,2]
[350232059,1737720652153,-151.0,0.00018475,2]
[350232060,1737720652162,-151.0,0.00018475,2]
[350232061,1737720652171,-151.0,0.00018475,2]
[350232062,1737720652181,-151.0,0.00018475,2]
[350232063,1737720652190,-151.0,0.00018475,2]
[350232064,1737720652199,-239.547292,0.00018475,2]
[350232065,1737720652208,-151.0,0.00018475,2]
[350232066,1737720652218,-151.0,0.00018475,2]
[350232067,1737720652227,-151.0,0.00018475,2]
[350232068,1737720652236,-151.0,0.00018475,2]
[350232069,1737720652245,-151.0,0.00018475,2]
[350232070,1737720652255,-151.0,0.00018475,2]
[350232071,1737720652264,-151.0,0.00018475,2]
[350232072,1737720652273,-151.0,0.00018475,2]
[350232073,1737720652283,-263.920982,0.00018475,2]
[350232074,1737720652292,-151.0,0.00018475,2]
[350232075,1737720652301,-151.0,0.00018475,2]
[350232076,1737720652311,-151.0,0.00018475,2]
[350232077,1737720652320,-151.0,0.00018475,2]
[350232078,1737720652330,-151.0,0.00018475,2]
[350232079,1737720652339,-151.0,0.00018475,2]
[350232080,1737720652349,-151.0,0.00018475,2]
[350232081,1737720652358,-275.523251,0.00018475,2]
[350232082,1737720652367,-3000.0,0.00018475,2]
[350232083,1737720652377,-248.89,0.00018475,2]
[350232084,1737720652386,-81124.26480926,0.00018475,2]
[350232085,1737720652396,-166.75538163,0.00018476,2]
[350232086,1737720652405,-151.0,0.00018476,2]
[350232087,1737720652414,-151.0,0.00018476,2]
[350232088,1737720652423,-151.0,0.00018476,2]
[350232089,1737720652434,-2588.0,0.00018477,2]
[350232090,1737720652443,-2815.6282414,0.0001849,2]
[350232091,1737720652452,-151.0,0.00018492,2]
[350232092,1737720652462,-805527.12014124,0.00018496,2]
[350232093,1737720652485,-31626.0,0.00018496,2]
[350232094,1737720652508,-1230.64,0.00018474,2]
[350232095,1737720652517,-365.7413,0.00018496,2]
[350232096,1737720652529,-2534.77944,0.00018496,2]
[350232099,1737721508459,34100.0,0.00012,2]
[350232100,1737721508488,64625.24176073,0.00012,2]
[350232101,1737721508512,642.42,0.00012,2]
[350232102,1737721508532,800.0,0.00012,2]
[350232103,1737721508556,800.0,0.00012,2]
[350232104,1737721508577,800.0,0.00012,2]
[350232105,1737721508599,800.0,0.00012,2]
[350232106,1737721508619,800.0,0.00012,2]
[350232107,1737721508641,800.0,0.00012,2]
[350232108,1737721508663,700.0,0.00012,2]
[350232109,1737721508688,258207.10372411,0.00012,2]
[350232110,1737721529801,44710.79171987,0.00011,2]
[350232114,1737721598098,-200.80139035,0.00017312,2]
[350232115,1737721598120,-4000.0,0.00017354,2]
[350232116,1737721598143,-371.83562308,0.00017355,2]
[350232117,1737721680598,713169.74161835,0.0001,2]
[350232127,1737721831832,-181.22,0.00015434,2]
[350232128,1737721831842,-167.42,0.00017346,2]
[350232129,1737721831851,-193.11,0.00017355,2]
[350232130,1737721831996,-1527.49437692,0.00017355,2]
[350232131,1737721832005,-512.74,0.00017412,2]
[350232132,1737721832015,-250.0,0.00017419,2]
[350232133,1737721832024,-235.16261859,0.00017453,2]
[350232134,1737721832053,-786.10936859,0.00017453,2]
[350232187,1737721837726,-305.80801282,0.00017453,2]
[350232188,1737721837736,-1000.0,0.00017453,2]
[350232189,1737721837746,-181.22,0.00017698,2]
[350232190,1737721837755,-300.0,0.00018067,2]
[350232191,1737721837765,-248.8,0.00018068,2]
[350232192,1737721837775,-900.0,0.00018068,2]
[350232193,1737721837784,-999.99,0.0001809,2]
[350232194,1737721837793,-377.71,0.0001809,2]
[350232195,1737721837803,-533.84001556,0.0001809,2]
[350232196,1737721837813,-255.0,0.00018121,2]
[350232197,1737721837823,-561.423,0.00018122,2]
[350232198,1737721837832,-3601.08,0.00018122,2]
[350232199,1737721837842,-1876.35,0.00018122,2]
[350232200,1737721837852,-9999.99,0.00018122,2]
[350232201,1737721837861,-150.99,0.00018122,2]
[350232202,1737721837871,-4146.75,0.00018122,2]
[350232203,1737721837884,-150.99,0.00018122,2]
[350232204,1737721837894,-176.58,0.00018122,2]
[350232205,1737721837904,-176.40963862,0.00018122,2]
[350232206,1737721837913,-41834.169333,0.00018189,2]
[350232207,1737721837926,-296.59583897,0.00018189,2]
[350232208,1737721837938,-344.91725884,0.00018189,2]
[350232209,1737721837955,-3856.07856362,0.00018189,2]
[350232210,1737721837965,-1777.057,0.0001819,2]
[350232211,1737721837974,-250.09,0.00018208,2]
[350232212,1737721837984,-359.48438585,0.00018243,2]
[350232213,1737721837993,-199.0,0.00018264,2]
[350232214,1737721838003,-245.46,0.0001827,2]
[350232215,1737721838012,-266.075,0.00018273,2]
[350232216,1737721838021,-15241.4894,0.00018273,2]
[350232217,1737721838031,-2300.14658027,0.00018273,2]
[350232218,1737721838040,-2300.14658024,0.00018287,2]
[350232219,1737721838049,-200.0,0.000183,6]
[350232220,1737721838060,-150.0,0.000183,4]
[350232221,1737721838069,-2300.14658024,0.00018301,2]
[350232222,1737721838079,-3000.0,0.0001831,2]
[350232223,1737721838088,-2300.14658024,0.00018315,2]
[350232224,1737721838097,-2300.14658024,0.00018329,2]
[350232225,1737721838107,-5224.71358977,0.00018333,2]
[350232227,1737721838126,-5224.71358977,0.00018343,2]
[350232228,1737721838136,-2300.14658024,0.00018344,2]
[350232229,1737721838145,-500.0,0.00018352,2]
[350232230,1737721838155,-2300.14658024,0.00018358,2]
[350232231,1737721838164,-5224.71358977,0.00018362,2]
[350232233,1737721838175,-809.36182698,0.00018363,2]
[350232234,1737721838184,-505.07939911,0.00018363,2]
[350232235,1737721838194,-383.44053411,0.00018364,2]
[350232236,1737721838203,-151.18348054,0.00018365,2]
[350232237,1737721838213,-45684.1258119,0.00018371,2]
[350232238,1737721838230,-756.45440896,0.00018371,2]
[350232239,1737721838242,-13203.90025039,0.00018371,2]
[350232240,1737721838251,-169.5757108,0.00018371,2]
[350232241,1737721838261,-2300.14658024,0.00018372,2]
[350232242,1737721838271,-1437.189052,0.00018372,2]
[350232243,1737721838280,-3786.9019,0.00018372,2]
[350232244,1737721838290,-991.2566,0.00018373,2]
[350232245,1737721838299,-5554.111,0.00018373,2]
[350232246,1737721838309,-2485.8515,0.00018373,2]
[350232247,1737721838318,-62826.0056,0.00018373,2]
[350232248,1737721838328,-180.5997,0.00018373,2]
[350232249,1737721838337,-4781.5456,0.00018373,2]
[350232250,1737721838347,-597.7266,0.00018373,2]
[350232251,1737721838356,-593.2768,0.00018373,2]
[350232252,1737721838366,-252.52,0.00018374,2]
[350232253,1737721838376,-246.1,0.00018374,2]
[350232254,1737721838386,-220.0,0.00018374,2]
[350232255,1737721838396,-1437.18905197,0.00018375,2]
[350232256,1737721838405,-459.75718312,0.00018378,2]
[350232257,1737721838418,-977.43186885,0.00018378,2]
[350232258,1737721838427,-383.44053411,0.00018381,2]
[350232259,1737721838436,-5423.27759705,0.00018384,2]
[350232260,1737721838447,-7974.85611611,0.00018384,2]
[350232263,1737721839892,-46246.34675809,0.00018384,2]
[350232264,1737721839902,-809.36182698,0.00018386,2]
[350232265,1737721839912,-2300.14658024,0.00018386,2]
[350232266,1737721839923,-383.44053411,0.00018388,2]
[350232267,1737721839933,-809.36182698,0.00018392,2]
[350232268,1737721839942,-505.07939911,0.00018395,2]
[350232269,1737721839952,-1300.0797,0.00018396,2]
[350232270,1737721839962,-809.36182698,0.00018397,2]
[350232271,1737721839972,-1353.24611264,0.00018397,2]
[350232272,1737721839981,-168.10101361,0.000184,2]
[350232273,1737721839990,-170.31246426,0.000184,2]
[350232274,1737721840000,-179.43683033,0.000184,2]
[350232275,1737721840010,-178.48118992,0.000184,2]
[350232276,1737721840019,-2300.14658024,0.000184,2]
[350232277,1737721840029,-535.53735262,0.000184,2]
[350232278,1737721840038,-1353.24611264,0.00018404,2]
[350232279,1737721840048,-809.36182698,0.00018411,2]
[350232280,1737721840058,-5224.71358977,0.00018412,2]
[350232281,1737721840068,-505.07939911,0.00018413,2]
[350232282,1737721840078,-59644.48047125,0.00018421,2]
[350232283,1737721840087,-505.07939911,0.00018422,2]
[350232284,1737721840097,-59644.48047125,0.00018425,2]
[350232285,1737721840107,-383.44053411,0.00018429,2]
[350232286,1737721840116,-383.44053411,0.00018434,2]
[350232287,1737721840126,-1353.24611264,0.00018447,2]
[350232288,1737721840135,-1353.24611264,0.00018456,2]
[350232289,1737721840145,-249.41,0.00018458,2]
[350232290,1737721840155,-59644.48047125,0.0001846,2]
[350232291,1737721840164,-281.92,0.00018461,2]
[350232292,1737721840176,-281.92,0.00018463,2]
[350232293,1737721840187,-4843.0,0.00018466,2]
[350232294,1737721840198,-1353.24611264,0.00018467,2]
[350232295,1737721840210,-505.07939911,0.00018468,2]
[350232296,1737721840219,-5224.71358977,0.00018469,2]
[350232297,1737721840228,-500.0,0.0001847,2]
[350232298,1737721840237,-874.79,0.0001847,2]
[350232299,1737721840246,-500.0,0.0001847,2]
[350232300,1737721840255,-500.0,0.0001847,2]
[350232301,1737721840265,-500.0,0.0001847,2]
[350232302,1737721840274,-727.77,0.0001847,2]
[350232303,1737721840284,-500.0,0.0001847,2]
[350232304,1737721840294,-500.0,0.0001847,2]
[350232305,1737721840303,-500.0,0.0001847,2]
[350232306,1737721840314,-500.0,0.0001847,2]
[350232307,1737721840324,-302.5407008,0.0001847,2]
[350232308,1737721840333,-502.41483265,0.0001847,2]
[350232309,1737721840343,-500.0,0.0001847,2]
[350232310,1737721840352,-500.0,0.0001847,2]
[350232311,1737721840362,-621.97234542,0.0001847,2]
[350232312,1737721840371,-500.0,0.0001847,2]
[350232313,1737721840381,-399.50346371,0.0001847,2]
[350232314,1737721840390,-973.067616,0.00018471,2]
[350232315,1737721840400,-793.93,0.00018471,2]
[350232316,1737721840409,-500.0,0.00018471,2]
[350232317,1737721840418,-1096.05,0.00018471,2]
[350232318,1737721840428,-1341.382527,0.00018471,2]
[350232319,1737721840437,-500.0,0.00018471,2]
[350232320,1737721840446,-2498.34,0.00018471,2]
[350232321,1737721840455,-1677.32,0.00018471,2]
[350232322,1737721840464,-500.0,0.00018471,2]
[350232323,1737721840473,-787.22,0.00018471,2]
[350232324,1737721840482,-500.0,0.00018471,2]
[350232325,1737721840492,-500.0,0.00018471,2]
[350232326,1737721840502,-1180.16,0.00018471,2]
[350232327,1737721840511,-872.94,0.00018471,2]
[350232328,1737721840521,-964.44,0.00018471,2]
[350232329,1737721840530,-1679.85,0.00018471,2]
[350232330,1737721840539,-1259.11,0.00018471,2]
[350232331,1737721840549,-500.0,0.00018471,2]
[350232332,1737721840558,-1005.81,0.00018471,2]
[350232333,1737721840569,-2827.03,0.00018471,2]
[350232334,1737721840578,-759.94,0.00018471,2]
[350232335,1737721840587,-591.89,0.00018471,2]
[350232336,1737721840596,-3061.49,0.00018471,2]
[350232337,1737721840606,-726.13,0.00018471,2]
[350232338,1737721840616,-500.0,0.00018471,2]
[350232339,1737721840627,-1692.35,0.00018471,2]
[350232340,1737721840636,-1879.47,0.00018471,2]
[350232341,1737721840646,-1267.68,0.00018471,2]
[350232342,1737721840656,-1470.23,0.00018471,2]
[350232343,1737721840665,-4166.85,0.00018471,2]
[350232344,1737721840674,-1024.68,0.00018471,2]
[350232345,1737721840683,-500.0,0.00018471,2]
[350232346,1737721840692,-500.0,0.00018471,2]
[350232347,1737721840701,-1352.75,0.00018471,2]
[350232348,1737721840711,-3015.72,0.00018471,2]
[350232349,1737721840720,-1073.91,0.00018471,2]
[350232350,1737721840729,-793.6,0.00018471,2]
[350232351,1737721840738,-3508.86,0.00018471,2]
[350232352,1737721840747,-1099.14,0.00018471,2]
[350232353,1737721840757,-2715.02,0.00018471,2]
[350232354,1737721840771,-500.0,0.00018471,2]
[350232355,1737721840780,-1594.14,0.00018471,2]
[350232356,1737721840791,-2695.04,0.00018471,2]
[350232357,1737721840801,-1542.77,0.00018471,2]
[350232358,1737721840812,-590.76,0.00018471,2]
[350232359,1737721840821,-500.0,0.00018471,2]
[350232360,1737721840830,-1986.69,0.00018471,2]
[350232361,1737721840839,-5010.34,0.00018471,2]
[350232362,1737721840848,-1117.03,0.00018471,2]
[350232363,1737721840858,-500.0,0.00018471,2]
[350232364,1737721840868,-1961.19,0.00018471,2]
[350232365,1737721840880,-959.68,0.00018471,2]
[350232366,1737721840891,-500.0,0.00018471,2]
[350232367,1737721840901,-500.0,0.00018471,2]
[350232368,1737721840911,-3917.65,0.00018471,2]
[350232369,1737721840921,-1610.43,0.00018471,2]
[350232370,1737721840931,-1141.47,0.00018471,2]
[350232371,1737721840940,-1418.29,0.00018471,2]
[350232372,1737721840949,-595.63,0.00018471,2]
[350232373,1737721840962,-522.35872629,0.00018471,2]
[350232374,1737721840972,-705.07,0.00018471,2]
[350232375,1737721840981,-666.18,0.00018471,2]
[350232376,1737721840990,-1710.29,0.00018471,2]
[350232377,1737721840999,-2276.33,0.00018471,2]
[350232378,1737721841008,-3477.66,0.00018471,2]
[350232379,1737721841017,-500.0,0.00018472,2]
[350232380,1737721841027,-500.0,0.00018472,2]
[350232381,1737721841042,-772.58,0.00018472,2]
[350232382,1737721841056,-500.0,0.00018472,2]
[350232383,1737721841066,-500.0,0.00018472,2]
[350232384,1737721841076,-501.45395146,0.00018472,2]
[350232385,1737721841085,-500.0,0.00018472,2]
[350232386,1737721841095,-505.93,0.00018472,2]
[350232387,1737721841104,-500.0,0.00018472,2]